[Event "Late-Titled-Tuesday-Blitz-April-30-2024"]
[Site "Chess.com"]
[Date "2024.04.30"]
[Round "8"]
[White "Casper"]
[Black "balachess2006"]
[Result "0-1"]
[WhiteElo "2508"]
[BlackElo "2679"]
[TimeControl "180+1"]
[EndTime "15:28:04 PDT"]
[Termination "balachess2006 won by checkmate"]

1. e4 {[%clk 0:02:55.3]} 1... c5 {[%clk 0:02:59.7]} 2. Nf3 {[%clk 0:02:54.7]}
2... Nc6 {[%clk 0:02:59.8]} 3. g3 {[%clk 0:02:55.4]} 3... g6 {[%clk 0:02:59.6]}
4. c3 {[%clk 0:02:55.4]} 4... Nf6 {[%clk 0:02:59.3]} 5. e5 {[%clk 0:02:53.8]}
5... Nd5 {[%clk 0:02:59.6]} 6. Bg2 {[%clk 0:02:53.8]} 6... Bg7 {[%clk
0:02:59.8]} 7. d4 {[%clk 0:02:52.9]} 7... cxd4 {[%clk 0:02:58.1]} 8. cxd4 {[%clk
0:02:53.8]} 8... O-O {[%clk 0:02:57.7]} 9. O-O {[%clk 0:02:53]} 9... d6 {[%clk
0:02:57.6]} 10. Re1 {[%clk 0:02:52.8]} 10... dxe5 {[%clk 0:02:55.9]} 11. dxe5
{[%clk 0:02:52.6]} 11... Bg4 {[%clk 0:02:53.9]} 12. Qb3 {[%clk 0:02:52.2]} 12...
Ndb4 {[%clk 0:02:49.5]} 13. Bf4 {[%clk 0:02:47.7]} 13... Be6 {[%clk 0:02:46]}
14. Qa4 {[%clk 0:02:38.3]} 14... Nd3 {[%clk 0:02:34.3]} 15. Re2 {[%clk
0:01:59.6]} 15... Nxf4 {[%clk 0:02:15.5]} 16. Qxf4 {[%clk 0:01:58.9]} 16... Qb6
{[%clk 0:02:05.9]} 17. Nc3 {[%clk 0:01:58.8]} 17... Rad8 {[%clk 0:02:04.9]} 18.
Rc1 {[%clk 0:01:49]} 18... Nd4 {[%clk 0:01:51.6]} 19. Nxd4 {[%clk 0:01:37.6]}
19... Rxd4 {[%clk 0:01:52.5]} 20. Qe3 {[%clk 0:01:37.4]} 20... Rfd8 {[%clk
0:01:45.3]} 21. b3 {[%clk 0:01:35.3]} 21... Qa6 {[%clk 0:01:41]} 22. Na4 {[%clk
0:01:23.2]} 22... b6 {[%clk 0:01:39.8]} 23. h4 {[%clk 0:01:08.5]} 23... h5
{[%clk 0:01:31.4]} 24. Rc7 {[%clk 0:01:05.7]} 24... R4d7 {[%clk 0:01:22.9]} 25.
Rec2 {[%clk 0:01:04]} 25... Qa5 {[%clk 0:01:17.7]} 26. f4 {[%clk 0:00:50]} 26...
Bf5 {[%clk 0:01:08.2]} 27. Rc1 {[%clk 0:00:45.4]} 27... Rd1+ {[%clk 0:01:03.1]}
28. Kh2 {[%clk 0:00:44.6]} 28... R1d2 {[%clk 0:00:56.2]} 29. Kh1 {[%clk
0:00:29.3]} 29... Rxa2 {[%clk 0:00:49.8]} 30. Nc3 {[%clk 0:00:16.7]} 30... Ra1
{[%clk 0:00:38.1]} 31. Rxe7 {[%clk 0:00:15.6]} 31... Bf8 {[%clk 0:00:34.2]} 32.
Rc7 {[%clk 0:00:10.5]} 32... Bc5 {[%clk 0:00:29.9]} 33. Qe1 {[%clk 0:00:09.6]}
33... Rxc1 {[%clk 0:00:24.3]} 34. Qxc1 {[%clk 0:00:10.5]} 34... Rd3 {[%clk
0:00:20.1]} 35. Nd5 {[%clk 0:00:06.1]} 35... Qd2 {[%clk 0:00:10.4]} 36. Qc4
{[%clk 0:00:05.1]} 36... Qe1+ {[%clk 0:00:10]} 37. Kh2 {[%clk 0:00:04.9]} 37...
Qg1# {[%clk 0:00:10.1]} 0-1

[Event "Late-Titled-Tuesday-Blitz-April-30-2024"]
[Site "Chess.com"]
[Date "2024.04.30"]
[Round "8"]
[White "Sanyura"]
[Black "stasOR4ik"]
[Result "1-0"]
[WhiteElo "2655"]
[BlackElo "2479"]
[TimeControl "180+1"]
[EndTime "15:28:04 PDT"]
[Termination "Sanyura won by checkmate"]

1. Nf3 {[%clk 0:02:14.4]} 1... d5 {[%clk 0:02:59.8]} 2. g3 {[%clk 0:02:14.5]}
2... Nf6 {[%clk 0:03:00.4]} 3. Bg2 {[%clk 0:02:14.8]} 3... c6 {[%clk 0:03:01.1]}
4. O-O {[%clk 0:02:15.2]} 4... Nbd7 {[%clk 0:03:01.4]} 5. d3 {[%clk 0:02:15.7]}
5... e5 {[%clk 0:03:01.7]} 6. Qe1 {[%clk 0:02:14.1]} 6... e4 {[%clk 0:02:53.4]}
7. Nfd2 {[%clk 0:01:46.9]} 7... exd3 {[%clk 0:02:39.2]} 8. cxd3 {[%clk 0:01:36]}
8... Be7 {[%clk 0:02:38.2]} 9. Nc3 {[%clk 0:01:35.8]} 9... O-O {[%clk
0:02:37.4]} 10. Nf3 {[%clk 0:01:35.2]} 10... Re8 {[%clk 0:02:30.3]} 11. Bg5
{[%clk 0:01:32.5]} 11... h6 {[%clk 0:02:29.5]} 12. Bxf6 {[%clk 0:01:32.7]} 12...
Bxf6 {[%clk 0:02:27.3]} 13. e4 {[%clk 0:01:33.2]} 13... dxe4 {[%clk 0:02:22.5]}
14. dxe4 {[%clk 0:01:33.4]} 14... Nc5 {[%clk 0:02:22.8]} 15. Qe3 {[%clk
0:01:19.7]} 15... Bxc3 {[%clk 0:02:02.8]} 16. Qxc5 {[%clk 0:01:19.2]} 16... Bxb2
{[%clk 0:01:57.9]} 17. Rab1 {[%clk 0:01:19.3]} 17... Bf6 {[%clk 0:01:54.2]} 18.
e5 {[%clk 0:01:19.5]} 18... Qe7 {[%clk 0:01:44.9]} 19. Qa5 {[%clk 0:00:57.4]}
19... Bxe5 {[%clk 0:01:32.8]} 20. Rfe1 {[%clk 0:00:56.4]} 20... f6 {[%clk
0:01:28]} 21. Nxe5 {[%clk 0:00:55.2]} 21... fxe5 {[%clk 0:01:27.9]} 22. f4
{[%clk 0:00:54.7]} 22... Qd8 {[%clk 0:01:13.3]} 23. Qxd8 {[%clk 0:00:15.9]}
23... Rxd8 {[%clk 0:01:14.2]} 24. Rxe5 {[%clk 0:00:15.8]} 24... Kf8 {[%clk
0:01:02.2]} 25. a4 {[%clk 0:00:13.9]} 25... Re8 {[%clk 0:00:57.3]} 26. Rc5
{[%clk 0:00:10.7]} 26... Re7 {[%clk 0:00:54.3]} 27. a5 {[%clk 0:00:10.4]} 27...
Bf5 {[%clk 0:00:52.4]} 28. Rxf5+ {[%clk 0:00:09.7]} 28... Kg8 {[%clk 0:00:52.9]}
29. a6 {[%clk 0:00:09.7]} 29... bxa6 {[%clk 0:00:52.7]} 30. Bxc6 {[%clk
0:00:09.5]} 30... Rc8 {[%clk 0:00:52.5]} 31. Bd5+ {[%clk 0:00:09.7]} 31... Kh7
{[%clk 0:00:50.3]} 32. Ra1 {[%clk 0:00:09.2]} 32... Rc5 {[%clk 0:00:44.6]} 33.
Be4 {[%clk 0:00:06.8]} 33... Rc4 {[%clk 0:00:36.2]} 34. Bd3 {[%clk 0:00:05.5]}
34... g6 {[%clk 0:00:30.8]} 35. Rd5 {[%clk 0:00:04]} 35... Rc6 {[%clk
0:00:29.4]} 36. h4 {[%clk 0:00:04.1]} 36... Re3 {[%clk 0:00:29.1]} 37. h5 {[%clk
0:00:04.2]} 37... Rxg3+ {[%clk 0:00:28.7]} 38. Kf2 {[%clk 0:00:04.7]} 38... Rh3
{[%clk 0:00:29]} 39. hxg6+ {[%clk 0:00:05.3]} 39... Kg7 {[%clk 0:00:29.4]} 40.
Rd7+ {[%clk 0:00:05.6]} 40... Kg8 {[%clk 0:00:28.5]} 41. Re1 {[%clk 0:00:05.5]}
41... Rxd3 {[%clk 0:00:20.2]} 42. Re8# {[%clk 0:00:04.3]} 1-0

[Event "Late-Titled-Tuesday-Blitz-April-30-2024"]
[Site "Chess.com"]
[Date "2024.04.30"]
[Round "8"]
[White "cristiano78"]
[Black "djano"]
[Result "0-1"]
[WhiteElo "2274"]
[BlackElo "2588"]
[TimeControl "180+1"]
[EndTime "15:28:07 PDT"]
[Termination "djano won on time"]

1. d4 {[%clk 0:02:54.7]} 1... Nf6 {[%clk 0:02:53.6]} 2. c4 {[%clk 0:02:54.7]}
2... a6 {[%clk 0:02:52.7]} 3. Nf3 {[%clk 0:02:54.5]} 3... b5 {[%clk 0:02:52.4]}
4. cxb5 {[%clk 0:02:53.7]} 4... axb5 {[%clk 0:02:53.3]} 5. g3 {[%clk 0:02:53.9]}
5... Bb7 {[%clk 0:02:51.7]} 6. Bg2 {[%clk 0:02:53.9]} 6... g6 {[%clk 0:02:50]}
7. O-O {[%clk 0:02:53.9]} 7... Bg7 {[%clk 0:02:50.5]} 8. Nbd2 {[%clk 0:02:49.6]}
8... O-O {[%clk 0:02:49.9]} 9. b3 {[%clk 0:02:44.7]} 9... d6 {[%clk 0:02:44.8]}
10. Bb2 {[%clk 0:02:44.9]} 10... Nbd7 {[%clk 0:02:44.8]} 11. a4 {[%clk
0:02:40.6]} 11... bxa4 {[%clk 0:02:41.3]} 12. bxa4 {[%clk 0:02:39.8]} 12... Ra6
{[%clk 0:02:36]} 13. Qb3 {[%clk 0:02:30.5]} 13... Qa8 {[%clk 0:02:34.4]} 14. Bc3
{[%clk 0:02:28.5]} 14... Bd5 {[%clk 0:02:30.1]} 15. Qc2 {[%clk 0:02:28]} 15...
Ne4 {[%clk 0:02:21.6]} 16. Nxe4 {[%clk 0:02:23.3]} 16... Bxe4 {[%clk 0:02:22.5]}
17. Qd1 {[%clk 0:02:13.4]} 17... Nb6 {[%clk 0:02:20.1]} 18. a5 {[%clk 0:02:13]}
18... Nc4 {[%clk 0:02:19.7]} 19. Qa4 {[%clk 0:02:00.9]} 19... Bd5 {[%clk
0:02:01.8]} 20. Rfc1 {[%clk 0:01:54.1]} 20... f5 {[%clk 0:01:55.9]} 21. Ne1
{[%clk 0:01:51.9]} 21... e6 {[%clk 0:01:48.6]} 22. Nd3 {[%clk 0:01:38.7]} 22...
Bxg2 {[%clk 0:01:45.3]} 23. Qxc4 {[%clk 0:01:38]} 23... Bd5 {[%clk 0:01:45]} 24.
Qa4 {[%clk 0:01:30.6]} 24... Bc6 {[%clk 0:01:38.8]} 25. Qb3 {[%clk 0:01:28.4]}
25... Bd5 {[%clk 0:01:35.9]} 26. Qa3 {[%clk 0:01:27.9]} 26... Bh6 {[%clk
0:01:32.6]} 27. Rc2 {[%clk 0:01:13.9]} 27... Be4 {[%clk 0:01:31.1]} 28. Bd2
{[%clk 0:01:10.4]} 28... Bg7 {[%clk 0:01:24.3]} 29. Rac1 {[%clk 0:01:06.5]}
29... Bxd4 {[%clk 0:00:53.4]} 30. Rxc7 {[%clk 0:00:55.9]} 30... f4 {[%clk
0:00:44.7]} 31. Nxf4 {[%clk 0:00:45.2]} 31... e5 {[%clk 0:00:38.4]} 32. Qb3+
{[%clk 0:00:37.6]} 32... Kh8 {[%clk 0:00:36]} 33. Qc4 {[%clk 0:00:19.3]} 33...
d5 {[%clk 0:00:22.9]} 34. Qb4 {[%clk 0:00:13.3]} 34... Raf6 {[%clk 0:00:22.2]}
35. Qe7 {[%clk 0:00:08.6]} 35... R6f7 {[%clk 0:00:19.3]} 36. Qxf7 {[%clk
0:00:08.6]} 36... Rxf7 {[%clk 0:00:20.2]} 37. Rxf7 {[%clk 0:00:08.6]} 37... exf4
{[%clk 0:00:19.2]} 38. Rcc7 {[%clk 0:00:08.3]} 38... g5 {[%clk 0:00:18.7]} 39.
Ra7 {[%clk 0:00:01.3]} 39... Bxa7 {[%clk 0:00:17.3]} 40. Bc3+ {[%clk 0:00:01.2]}
40... Kg8 {[%clk 0:00:17.9]} 0-1

[Event "Late-Titled-Tuesday-Blitz-April-30-2024"]
[Site "Chess.com"]
[Date "2024.04.30"]
[Round "8"]
[White "GMG"]
[Black "Djager97"]
[Result "0-1"]
[WhiteElo "2779"]
[BlackElo "2582"]
[TimeControl "180+1"]
[EndTime "15:28:09 PDT"]
[Termination "Djager97 won on time"]

1. e4 {[%clk 0:02:57.4]} 1... e5 {[%clk 0:03:00.1]} 2. Nf3 {[%clk 0:02:57.4]}
2... Nc6 {[%clk 0:03:00.6]} 3. Bb5 {[%clk 0:02:58]} 3... a6 {[%clk 0:03:00.5]}
4. Ba4 {[%clk 0:02:58.5]} 4... Nf6 {[%clk 0:03:00.6]} 5. O-O {[%clk 0:02:58]}
5... b5 {[%clk 0:03:01.1]} 6. Bb3 {[%clk 0:02:58]} 6... Bc5 {[%clk 0:03:01.7]}
7. a4 {[%clk 0:02:54.4]} 7... Rb8 {[%clk 0:03:01.3]} 8. axb5 {[%clk 0:02:53.2]}
8... axb5 {[%clk 0:03:02.2]} 9. Nxe5 {[%clk 0:02:52.8]} 9... Nxe5 {[%clk
0:02:59.9]} 10. d4 {[%clk 0:02:53.2]} 10... Bxd4 {[%clk 0:03:00.2]} 11. Qxd4
{[%clk 0:02:54.1]} 11... d6 {[%clk 0:03:00.8]} 12. f4 {[%clk 0:02:51]} 12... Nc6
{[%clk 0:03:00]} 13. Qd3 {[%clk 0:02:47.8]} 13... O-O {[%clk 0:02:51.7]} 14. Nc3
{[%clk 0:02:46.5]} 14... Nb4 {[%clk 0:02:50.9]} 15. Qg3 {[%clk 0:02:34.7]} 15...
Bb7 {[%clk 0:02:42.4]} 16. e5 {[%clk 0:02:32.3]} 16... Nfd5 {[%clk 0:02:06.3]}
17. f5 {[%clk 0:02:15.2]} 17... dxe5 {[%clk 0:01:42]} 18. Kh1 {[%clk 0:01:13.1]}
18... Kh8 {[%clk 0:00:37.1]} 19. f6 {[%clk 0:01:03.8]} 19... gxf6 {[%clk
0:00:27.8]} 20. Ne4 {[%clk 0:00:49.4]} 20... Rg8 {[%clk 0:00:25.3]} 21. Qh4
{[%clk 0:00:49.9]} 21... Nf4 {[%clk 0:00:21.9]} 22. Bxf4 {[%clk 0:00:49.5]}
22... Bxe4 {[%clk 0:00:21.3]} 23. Bg3 {[%clk 0:00:49.6]} 23... Bxc2 {[%clk
0:00:14.9]} 24. Bxf7 {[%clk 0:00:48.2]} 24... Rg7 {[%clk 0:00:13.7]} 25. Rxf6
{[%clk 0:00:19.5]} 25... Qd4 {[%clk 0:00:12.7]} 26. Qxd4 {[%clk 0:00:15.1]}
26... exd4 {[%clk 0:00:13.6]} 27. Be5 {[%clk 0:00:15.4]} 27... d3 {[%clk
0:00:13.2]} 28. Rf3 {[%clk 0:00:07.8]} 28... d2 {[%clk 0:00:11.5]} 29. Rg3
{[%clk 0:00:08.2]} 29... Bg6 {[%clk 0:00:10.9]} 30. Bxg6 {[%clk 0:00:06.9]}
30... hxg6 {[%clk 0:00:11.6]} 31. Rxg6 {[%clk 0:00:06.4]} 31... Re8 {[%clk
0:00:06.7]} 32. Rxg7 {[%clk 0:00:02.7]} 32... Rxe5 {[%clk 0:00:06.2]} 33. Rf7
{[%clk 0:00:03.4]} 33... Re1+ {[%clk 0:00:06.1]} 34. Rf1 {[%clk 0:00:03.5]}
34... Nc2 {[%clk 0:00:06.1]} 35. Kg1 {[%clk 0:00:01.9]} 35... Rxa1 {[%clk
0:00:05.9]} 0-1

[Event "Late-Titled-Tuesday-Blitz-April-30-2024"]
[Site "Chess.com"]
[Date "2024.04.30"]
[Round "8"]
[White "chess_sharparchitect"]
[Black "Rytenko_V"]
[Result "0-1"]
[WhiteElo "2270"]
[BlackElo "2490"]
[TimeControl "180+1"]
[EndTime "15:28:09 PDT"]
[Termination "Rytenko_V won on time"]

1. c4 {[%clk 0:03:00.9]} 1... e5 {[%clk 0:02:59.1]} 2. Nc3 {[%clk 0:03:01]} 2...
Nf6 {[%clk 0:02:59.6]} 3. Nf3 {[%clk 0:03:01.4]} 3... Nc6 {[%clk 0:02:59.4]} 4.
e3 {[%clk 0:03:01.3]} 4... g6 {[%clk 0:02:59.9]} 5. d4 {[%clk 0:03:01.1]} 5...
exd4 {[%clk 0:02:59.5]} 6. exd4 {[%clk 0:03:01.3]} 6... d5 {[%clk 0:02:59]} 7.
Bg5 {[%clk 0:02:55.2]} 7... dxc4 {[%clk 0:02:38.5]} 8. Bxc4 {[%clk 0:02:40]}
8... Bg7 {[%clk 0:02:37.1]} 9. d5 {[%clk 0:02:30.6]} 9... Ne7 {[%clk 0:02:36.5]}
10. O-O {[%clk 0:02:20.7]} 10... O-O {[%clk 0:02:36.4]} 11. Qb3 {[%clk
0:02:06.2]} 11... h6 {[%clk 0:02:32.3]} 12. Bh4 {[%clk 0:02:04.5]} 12... Nf5
{[%clk 0:02:31.8]} 13. Bxf6 {[%clk 0:01:53.7]} 13... Qxf6 {[%clk 0:02:32.7]} 14.
Rfe1 {[%clk 0:01:49.7]} 14... Nd6 {[%clk 0:02:29.3]} 15. Bd3 {[%clk 0:01:47]}
15... a6 {[%clk 0:02:27.8]} 16. Re3 {[%clk 0:01:36.4]} 16... Bd7 {[%clk
0:02:16.2]} 17. Rae1 {[%clk 0:01:36]} 17... Rae8 {[%clk 0:02:15.7]} 18. Qc2
{[%clk 0:01:23.7]} 18... b5 {[%clk 0:02:11.9]} 19. a3 {[%clk 0:01:23]} 19...
Rxe3 {[%clk 0:02:08.8]} 20. Rxe3 {[%clk 0:01:22.4]} 20... a5 {[%clk 0:02:04.7]}
21. Nd1 {[%clk 0:01:08]} 21... Rc8 {[%clk 0:02:02.3]} 22. b4 {[%clk 0:01:02.2]}
22... axb4 {[%clk 0:01:59.3]} 23. axb4 {[%clk 0:01:03.1]} 23... Bf8 {[%clk
0:01:57.9]} 24. Ne5 {[%clk 0:00:56.5]} 24... Be8 {[%clk 0:01:53.9]} 25. Nc3
{[%clk 0:00:52.6]} 25... Ra8 {[%clk 0:01:49]} 26. Re1 {[%clk 0:00:47.9]} 26...
Bg7 {[%clk 0:01:36.6]} 27. h3 {[%clk 0:00:43.3]} 27... Qf4 {[%clk 0:01:34.9]}
28. Ng4 {[%clk 0:00:40.3]} 28... Qxb4 {[%clk 0:01:32]} 29. Rc1 {[%clk
0:00:26.6]} 29... h5 {[%clk 0:01:23.9]} 30. Ne3 {[%clk 0:00:24.5]} 30... Qc5
{[%clk 0:01:13.7]} 31. Ne4 {[%clk 0:00:20.6]} 31... Qxc2 {[%clk 0:01:12.1]} 32.
Rxc2 {[%clk 0:00:19.1]} 32... Ra1+ {[%clk 0:01:11.7]} 33. Kh2 {[%clk 0:00:18.7]}
33... Be5+ {[%clk 0:01:12.4]} 34. g3 {[%clk 0:00:18.5]} 34... Nxe4 {[%clk
0:01:05.5]} 35. Bxe4 {[%clk 0:00:18.4]} 35... b4 {[%clk 0:01:03.3]} 36. Nc4
{[%clk 0:00:16.3]} 36... Bd4 {[%clk 0:00:59]} 37. Rd2 {[%clk 0:00:13.9]} 37...
Bc3 {[%clk 0:00:59.2]} 38. Re2 {[%clk 0:00:14]} 38... Bb5 {[%clk 0:00:59]} 39.
Bd3 {[%clk 0:00:13.3]} 39... b3 {[%clk 0:00:59.5]} 40. Nb2 {[%clk 0:00:10.3]}
40... Bd7 {[%clk 0:00:31.8]} 41. Nc4 {[%clk 0:00:07.6]} 41... Ra2 {[%clk
0:00:29.5]} 42. Kg2 {[%clk 0:00:03.6]} 42... Bb5 {[%clk 0:00:22.6]} 0-1

[Event "Late-Titled-Tuesday-Blitz-April-30-2024"]
[Site "Chess.com"]
[Date "2024.04.30"]
[Round "8"]
[White "Mops_2004"]
[Black "SVijayalakshmi"]
[Result "1/2-1/2"]
[WhiteElo "2785"]
[BlackElo "2571"]
[TimeControl "180+1"]
[EndTime "15:28:19 PDT"]
[Termination "Game drawn - insufficient material"]

1. e4 {[%clk 0:03:00.9]} 1... e5 {[%clk 0:02:59.9]} 2. Nf3 {[%clk 0:03:00.9]}
2... Nc6 {[%clk 0:03:00.1]} 3. Bb5 {[%clk 0:03:00.7]} 3... a6 {[%clk 0:02:59.4]}
4. Ba4 {[%clk 0:03:01]} 4... Nf6 {[%clk 0:03:00]} 5. O-O {[%clk 0:03:01.2]} 5...
Be7 {[%clk 0:03:00.5]} 6. Re1 {[%clk 0:03:00]} 6... b5 {[%clk 0:03:00.5]} 7. Bb3
{[%clk 0:03:00.4]} 7... O-O {[%clk 0:03:00.3]} 8. d3 {[%clk 0:02:57.8]} 8... Bb7
{[%clk 0:02:53.4]} 9. Nc3 {[%clk 0:02:55.3]} 9... d6 {[%clk 0:02:52.6]} 10. a3
{[%clk 0:02:52.3]} 10... h6 {[%clk 0:02:47.7]} 11. Nd5 {[%clk 0:02:47.8]} 11...
Nxd5 {[%clk 0:02:43.9]} 12. exd5 {[%clk 0:02:43.6]} 12... Na5 {[%clk 0:02:41.3]}
13. Ba2 {[%clk 0:02:42.5]} 13... Bc8 {[%clk 0:02:40.2]} 14. d4 {[%clk
0:02:40.6]} 14... exd4 {[%clk 0:02:30.5]} 15. Nxd4 {[%clk 0:02:40.4]} 15... Bd7
{[%clk 0:02:22]} 16. b3 {[%clk 0:02:33.9]} 16... Bf6 {[%clk 0:02:20.6]} 17. Rb1
{[%clk 0:02:29.6]} 17... Re8 {[%clk 0:02:19.8]} 18. Be3 {[%clk 0:02:27.1]} 18...
Qe7 {[%clk 0:02:14.3]} 19. Qd2 {[%clk 0:02:25.4]} 19... Nb7 {[%clk 0:02:12]} 20.
Bxh6 {[%clk 0:02:23]} 20... Qf8 {[%clk 0:02:09.2]} 21. Bg5 {[%clk 0:02:18.6]}
21... Bxg5 {[%clk 0:01:59]} 22. Qxg5 {[%clk 0:02:18.4]} 22... Nc5 {[%clk
0:01:58.8]} 23. f3 {[%clk 0:02:04.2]} 23... a5 {[%clk 0:01:58.4]} 24. Qd2 {[%clk
0:01:59.5]} 24... Reb8 {[%clk 0:01:52.8]} 25. c3 {[%clk 0:01:38.6]} 25... b4
{[%clk 0:01:51.5]} 26. cxb4 {[%clk 0:01:38.6]} 26... axb4 {[%clk 0:01:51.2]} 27.
a4 {[%clk 0:01:36.8]} 27... g6 {[%clk 0:01:42.2]} 28. Rbc1 {[%clk 0:01:35.8]}
28... Rb7 {[%clk 0:01:36.2]} 29. Rc4 {[%clk 0:01:35.5]} 29... Rab8 {[%clk
0:01:34.7]} 30. Bb1 {[%clk 0:01:33.6]} 30... Qg7 {[%clk 0:01:31.7]} 31. Bc2
{[%clk 0:01:29.8]} 31... Qf6 {[%clk 0:01:30.9]} 32. g3 {[%clk 0:01:24.6]} 32...
Kg7 {[%clk 0:01:24.1]} 33. h4 {[%clk 0:01:24.6]} 33... Rb6 {[%clk 0:01:19]} 34.
Qg5 {[%clk 0:01:24]} 34... Re8 {[%clk 0:01:08.9]} 35. Rxe8 {[%clk 0:01:23.2]}
35... Qxg5 {[%clk 0:01:06.9]} 36. hxg5 {[%clk 0:01:20.6]} 36... Bxe8 {[%clk
0:01:07.1]} 37. Kf2 {[%clk 0:01:18]} 37... f6 {[%clk 0:01:06.7]} 38. gxf6+
{[%clk 0:01:06.6]} 38... Kxf6 {[%clk 0:01:06.7]} 39. f4 {[%clk 0:00:51.9]} 39...
Bf7 {[%clk 0:01:02.9]} 40. Nb5 {[%clk 0:00:47.2]} 40... Bxd5 {[%clk 0:00:59.5]}
41. Rxb4 {[%clk 0:00:46.9]} 41... c6 {[%clk 0:00:53.2]} 42. Ke3 {[%clk
0:00:22.6]} 42... cxb5 {[%clk 0:00:52.7]} 43. Rxb5 {[%clk 0:00:20.9]} 43... Rxb5
{[%clk 0:00:52.4]} 44. axb5 {[%clk 0:00:21.8]} 44... Bxb3 {[%clk 0:00:49.3]} 45.
Bxb3 {[%clk 0:00:18.7]} 45... Nxb3 {[%clk 0:00:49.5]} 46. b6 {[%clk 0:00:19.1]}
46... Nc5 {[%clk 0:00:48.8]} 47. Kd4 {[%clk 0:00:17.1]} 47... Ke6 {[%clk
0:00:48.5]} 48. g4 {[%clk 0:00:16.3]} 48... Nb7 {[%clk 0:00:48.5]} 49. f5+
{[%clk 0:00:04.4]} 49... gxf5 {[%clk 0:00:48.4]} 50. gxf5+ {[%clk 0:00:05.3]}
50... Kxf5 {[%clk 0:00:48.7]} 51. Kd5 {[%clk 0:00:06.2]} 51... Kf6 {[%clk
0:00:47.4]} 52. Kc6 {[%clk 0:00:06.4]} 52... Na5+ {[%clk 0:00:38.3]} 53. Kxd6
{[%clk 0:00:07.3]} 53... Nc4+ {[%clk 0:00:36.4]} 54. Kc7 {[%clk 0:00:07.6]}
54... Nxb6 {[%clk 0:00:36.8]} 1/2-1/2

[Event "Late-Titled-Tuesday-Blitz-April-30-2024"]
[Site "Chess.com"]
[Date "2024.04.30"]
[Round "8"]
[White "mightysmasher"]
[Black "Indefatigable11"]
[Result "1-0"]
[WhiteElo "2538"]
[BlackElo "2386"]
[TimeControl "180+1"]
[EndTime "15:28:19 PDT"]
[Termination "mightysmasher won by resignation"]

1. e4 {[%clk 0:03:00.9]} 1... e5 {[%clk 0:02:57.1]} 2. Nf3 {[%clk 0:03:00.3]}
2... Nc6 {[%clk 0:02:56.2]} 3. d4 {[%clk 0:03:00.5]} 3... exd4 {[%clk
0:02:54.3]} 4. Nxd4 {[%clk 0:03:01.4]} 4... Nf6 {[%clk 0:02:53.5]} 5. Nc3 {[%clk
0:03:01]} 5... Bb4 {[%clk 0:02:52.2]} 6. Nxc6 {[%clk 0:03:01.2]} 6... bxc6
{[%clk 0:02:51.5]} 7. Bd3 {[%clk 0:03:01.4]} 7... d5 {[%clk 0:02:50.6]} 8. exd5
{[%clk 0:03:01.3]} 8... O-O {[%clk 0:02:50.3]} 9. O-O {[%clk 0:03:01.7]} 9...
cxd5 {[%clk 0:02:49.7]} 10. Bg5 {[%clk 0:03:01.5]} 10... c6 {[%clk 0:02:47.8]}
11. Qf3 {[%clk 0:02:57]} 11... Be7 {[%clk 0:02:44.9]} 12. Rfe1 {[%clk
0:02:56.7]} 12... Be6 {[%clk 0:02:39]} 13. Ne2 {[%clk 0:02:55.6]} 13... Qd7
{[%clk 0:02:37.6]} 14. Nf4 {[%clk 0:02:48.1]} 14... h6 {[%clk 0:02:09.6]} 15.
Bxf6 {[%clk 0:02:43.5]} 15... Bxf6 {[%clk 0:02:06.8]} 16. Nxe6 {[%clk
0:02:36.3]} 16... fxe6 {[%clk 0:02:05.9]} 17. Qg4 {[%clk 0:02:34.6]} 17... Bxb2
{[%clk 0:01:57.8]} 18. Rab1 {[%clk 0:02:32.2]} 18... Bc3 {[%clk 0:01:51.4]} 19.
Qxe6+ {[%clk 0:02:25.8]} 19... Qxe6 {[%clk 0:01:50.5]} 20. Rxe6 {[%clk
0:02:26.7]} 20... Bd4 {[%clk 0:01:38.8]} 21. Rf1 {[%clk 0:02:13.9]} 21... c5
{[%clk 0:01:24.3]} 22. Rd6 {[%clk 0:01:45.8]} 22... Rad8 {[%clk 0:01:20.8]} 23.
Rxd8 {[%clk 0:01:40.5]} 23... Rxd8 {[%clk 0:01:19.9]} 24. Bf5 {[%clk 0:01:32.7]}
24... Kf7 {[%clk 0:01:09.2]} 25. Rd1 {[%clk 0:01:26.9]} 25... Kf6 {[%clk
0:01:08]} 26. Bg4 {[%clk 0:01:26]} 26... Kg5 {[%clk 0:01:03.9]} 27. Bf3 {[%clk
0:01:25.7]} 27... Kf4 {[%clk 0:00:55.9]} 28. Rd3 {[%clk 0:01:24.1]} 28... Re8
{[%clk 0:00:51.7]} 29. g3+ {[%clk 0:01:22.8]} 29... Kf5 {[%clk 0:00:39.9]} 30.
c3 {[%clk 0:01:12.6]} 30... Re1+ {[%clk 0:00:28.3]} 31. Kg2 {[%clk 0:01:10.9]}
31... Be5 {[%clk 0:00:27.2]} 32. Rxd5 {[%clk 0:01:10.7]} 32... Rc1 {[%clk
0:00:23.5]} 33. Be2 {[%clk 0:01:02]} 33... Rxc3 {[%clk 0:00:21.3]} 34. f4 {[%clk
0:00:58.3]} 34... Re3 {[%clk 0:00:19.8]} 35. Rxe5+ {[%clk 0:00:56.6]} 35... Rxe5
{[%clk 0:00:20.6]} 36. fxe5 {[%clk 0:00:57.5]} 36... Kxe5 {[%clk 0:00:20.9]} 37.
Kf2 {[%clk 0:00:57.3]} 37... Kd4 {[%clk 0:00:20.3]} 38. Ke1 {[%clk 0:00:57.5]}
38... Kc3 {[%clk 0:00:20.6]} 39. Kd1 {[%clk 0:00:57.2]} 39... Kb2 {[%clk
0:00:20.4]} 40. Bc4 {[%clk 0:00:56.7]} 40... Kc3 {[%clk 0:00:20.1]} 41. Bf7
{[%clk 0:00:56.7]} 41... Kd3 {[%clk 0:00:19.4]} 42. Kc1 {[%clk 0:00:53.5]} 42...
c4 {[%clk 0:00:19.3]} 43. h4 {[%clk 0:00:50.8]} 43... g5 {[%clk 0:00:11.3]} 44.
hxg5 {[%clk 0:00:47.6]} 44... hxg5 {[%clk 0:00:11.6]} 45. g4 {[%clk 0:00:47.9]}
45... a6 {[%clk 0:00:10.6]} 46. Bg6+ {[%clk 0:00:46.1]} 46... Kc3 {[%clk
0:00:10.1]} 47. Bf5 {[%clk 0:00:46]} 47... a5 {[%clk 0:00:09.7]} 48. Bd7 {[%clk
0:00:45.6]} 48... Kd3 {[%clk 0:00:08.4]} 49. Bf5+ {[%clk 0:00:45.7]} 49... Kc3
{[%clk 0:00:08.6]} 50. Bh7 {[%clk 0:00:46.1]} 50... a4 {[%clk 0:00:08]} 51. Bg6
{[%clk 0:00:43.8]} 51... a3 {[%clk 0:00:08]} 52. Bh7 {[%clk 0:00:44]} 52... Kd4
{[%clk 0:00:06.5]} 53. Kc2 {[%clk 0:00:44.1]} 53... c3 {[%clk 0:00:05]} 54. Bg8
{[%clk 0:00:42]} 54... Ke3 {[%clk 0:00:03.1]} 55. Kxc3 {[%clk 0:00:41.5]} 55...
Ke4 {[%clk 0:00:03.7]} 56. Be6 {[%clk 0:00:41.5]} 56... Ke5 {[%clk 0:00:03.8]}
57. Bf5 {[%clk 0:00:41.6]} 1-0